Cogmind - Beta 13 @@@ ROGUE MODE // 2024.07.20 @ 22:02:16 Player: Tyrockal Result: Destroyed by D-53 Grenadier with Mini Grenade Launcher Performance ------------- Evolutions (0) 0 Regions Visited (2) 400 Robots Destroyed (7) 35 Value Destroyed (189) 189 Prototype IDs (0) 0 Alien Tech Used (0) 0 Bonus (0) 0 TOTAL SCORE: 624 Bonus ------- None Cogmind --------- Core Integrity 0/250 Matter 166/300 Energy 100/100 System Corruption 0% Temperature Cool (0) Movement Treading (145) Location -10/Mines Parts ------- > --- POWER (1) -------- (None) > --- PROPULSION (2) --- Advanced Treads > --- UTILITY (2) ------ Improved Heat Sink Small Storage Unit > --- WEAPON (2) ------- Heavy Assault Cannon > --- INVENTORY (8) ---- Aluminum Leg Improved Sensor Array Propulsion Shielding Propulsion Shielding Insulated Plating Hardlight Generator Particle Gun Axe Peak State ------------ > --- POWER ------------ Light Nuclear Core > --- PROPULSION ------- Light Treads Advanced Treads > --- UTILITY ---------- Improved Heat Sink Small Storage Unit > --- WEAPON ----------- Heavy Assault Cannon > --- INVENTORY -------- Improved Sensor Array Improved Terrain Scan Processor Propulsion Shielding Propulsion Shielding Insulated Plating Hardlight Generator Particle Gun Axe [Rating: 18] Favorites ----------- Power Light Nuclear Core Engine Light Ion Engine Power Core Light Nuclear Core Propulsion Light Treads Treads Light Treads Utility Small Storage Unit Device Improved Heat Sink Storage Small Storage Unit Protection Weapon Shielding Weapon Assault Rifle Energy Gun Particle Gun Ballistic Gun Assault Rifle Ballistic Cannon Heavy Assault Cannon Build | -11 -10 -10 ------- Run | Yrd Mat Min Slots Evolved . | . . . Power . | . . . Propulsion . | . . . Utility . | . . . Weapon . | . . . Parts Attached 24 | 7 8 9 Power 5 | 1 2 2 Engine 3 | 1 2 . Core 2 | . . 2 Reactor . | . . . Propulsion 3 | 2 . 1 Treads 3 | 2 . 1 Leg . | . . . Wheel . | . . . Hover . | . . . Flight . | . . . Utility 6 | 1 1 4 Device 1 | . . 1 Storage 1 | 1 . . Processor . | . . . Hackware . | . . . Protection 4 | . 1 3 Artifact . | . . . Weapon 10 | 3 5 2 Energy Gun 2 | 1 . 1 Energy Cannon . | . . . Ballistic Gun 7 | 2 5 . Ballistic Cannon 1 | . . 1 Launcher . | . . . Special Weapon . | . . . Impact Weapon . | . . . Slashing Weapon . | . . . Piercing Weapon . | . . . Special Melee Weapon . | . . . Unidentified Prototypes . | . . . Parts Lost 2 | . . 2 Power 1 | . . 1 Propulsion 1 | . . 1 Utility . | . . . Weapon . | . . . Highest Loss Streak 2 | . . 2 To Critical Strikes . | . . . Average Slot Usage (%) 94 | . 98 90 Engine 7 | . 14 1 Core 6 | . . 12 Treads 28 | . 28 28 Device 3 | . . 6 Storage 14 | . 14 14 Protection 10 | . 13 7 Energy Gun 3 | . . 5 Ballistic Gun 16 | . 27 7 Ballistic Cannon 3 | . . 7 Naked Turns . | . . . Heaviest Build 23 | 11 15 23 Greatest Support 42 | 40 40 42 Greatest Overweight (x) 2 | 2 . . Average Overweight (x) . | . . . Largest Inventory Capacity 8 | 8 8 8 Average Capacity 7 | 7 8 8 Most Carried 8 | 4 8 8 Average Carried 6 | 1 6 7 Final Capacity 8 | 8 8 8 Final Carried 8 | 4 6 8 Class Distribution -------------------- 100% | Mutant Dominant Class ---------------- Mutant | -10/Materials Mutant | -10/Mines Resources | -11 -10 -10 ----------- Run | Yrd Mat Min Matter Collected 442 | 208 134 100 Remotely . | . . . Salvage Created 222 | . 75 147 Parts 15 | . 6 9 Haulers Intercepted . | . . . Recyclers Shooed . | . . . Parts Field Recycled . | . . . Retrieved Matter . | . . . Parts Self-Destructed . | . . . Prevented . | . . . Kills | -11 -10 -10 ------- Run | Yrd Mat Min Combat Hostiles Destroyed 6 | . 3 3 Guns 5 | . 3 2 Cannons 1 | . . 1 Classes Destroyed 4 | . 2 2 Worker 1 | . . 1 Swarmer 2 | . 2 . Grunt 3 | . 1 2 Demolisher 1 | . . 1 Best Kill Streak 2 | . 2 2 Combat Bots Only 2 | . 2 2 Max Kills in Single Turn 1 | . 1 1 Gunslinging . | . . . Exploded . | . . . Melee . | . . . Uniques/NPCs Destroyed . | . . . Combat | -11 -10 -10 -------- Run | Yrd Mat Min Hostile Shots Fired 55 | . 27 28 Missed 12 | . 9 3 Damage Taken 987 | . 247 740 Core 289 | . 18 271 Absorbed by Shields . | . . . Redirected to Shielding 35 | . 24 11 Core Remaining (%) 100 | 100 . . Volleys Fired 25 | . 14 11 Largest 2 | . 2 2 Hottest 60 | . 40 60 Shots Fired 44 | . 28 16 Gun 38 | . 28 10 Cannon 6 | . . 6 Launcher . | . . . Special . | . . . Kinetic 44 | . 28 16 Thermal . | . . . Explosive . | . . . Electromagnetic . | . . . Robot Hit Streak 6 | . 6 4 Robot Miss Streak 7 | . 7 3 Penetration Max . | . . . Secondary Targets 2 | . 1 1 Max Gunslinging Chain 1 | . 1 1 Shots Hit Robots 26 | . 16 10 Core Hits 11 | . 5 6 Critical Kills . | . . . Critical Parts Destroyed . | . . . Critical Strikes 2 | . . 2 Blast 2 | . . 2 Melee Attacks . | . . . Impact . | . . . Slashing . | . . . Piercing . | . . . Sneak Attacks . | . . . Combat Hostiles . | . . . Follow-up Attacks . | . . . Damage Inflicted 503 | . 180 323 Guns 281 | . 180 101 Cannons 222 | . . 222 Explosions . | . . . Melee . | . . . Ramming . | . . . Kinetic 503 | . 180 323 Thermal . | . . . Explosive . | . . . Electromagnetic . | . . . Impact . | . . . Slashing . | . . . Piercing . | . . . Highest Corruption . | . . . Average Corruption . | . . . Corruption Purged . | . . . Corruption Blocked . | . . . Overload Shots . | . . . Overflow Damage 17 | . . 17 Projectiles 17 | . . 17 Explosions . | . . . Melee . | . . . Knockbacks 1 | . . 1 Impact . | . . . Kinetic 1 | . . 1 Secondary . | . . . Self-Inflicted Damage . | . . . Shots . | . . . Rammed . | . . . Targets Rammed . | . . . Kicked . | . . . Crushed . | . . . Highest Temperature 9 | . 2 9 Average Temperature 3 | . 2 4 Received Heat Transfer 93 | . 39 54 Siege Activations . | . . . Robots Corrupted . | . . . Combat Hostiles . | . . . Parts Fried . | . . . Impact Corruptions . | . . . Robots Melted . | . . . Combat Hostiles . | . . . Parts Melted . | . . . Heat Transferred . | . . . Parts Sabotaged . | . . . Parts Stolen . | . . . Parts Stripped . | . . . Power Chain Reactions . | . . . Alert | -11 -10 -10 ------- Run | Yrd Mat Min Peak Influence 112 | . 110 112 Initial 42 | . . 42 Average 62 | . 47 94 Maximum Alert Level . | . . . Low Security (%) 100 | 100 100 100 Level 1 . | . . . Level 2 . | . . . Level 3 . | . . . Level 4 . | . . . Level 5 . | . . . High Security . | . . . Max Security . | . . . Squads Dispatched 1 | . . 1 Investigation 1 | . . 1 Extermination . | . . . Reinforcement . | . . . Assault . | . . . Garrison . | . . . Intercept . | . . . Searches Triggered . | . . . Construction Impeded . | . . . Haulers Reinforced . | . . . Active Scanning Responses . | . . . Cargo Convoy Interrupts . | . . . Stealth | -11 -10 -10 --------- Run | Yrd Mat Min Distress Signals . | . . . Communications Jammed . | . . . Distress Signals . | . . . Times Spotted 13 | . 7 6 Peak Tracking Total 4 | . 3 4 Tactical Retreats 1 | . 1 . Traps | -11 -10 -10 ------- Run | Yrd Mat Min Traps Triggered . | . . . Indirectly . | . . . Trap Hack Attempts . | . . . Triggered . | . . . Disarmed . | . . . Reprogrammed . | . . . Reused . | . . . Traps Extracted . | . . . Installed . | . . . Triggered . | . . . Machines | -11 -10 -10 ---------- Run | Yrd Mat Min Machines Disabled . | . . . Max in Single Turn . | . . . Machines Repaired . | . . . Machines Dismantled . | . . . Machines Sabotaged . | . . . Overloaded Fab Kills . | . . . Hacking | -11 -10 -10 --------- Run | Yrd Mat Min Machines Accessed 5 | . 3 2 Terminals 3 | . 2 1 Fabricators . | . . . Repair Stations . | . . . Recycling Units 1 | . 1 . Scanalyzers . | . . . Garrison Access . | . . . Total Hacks 6 | . 4 2 Successful 5 | . 3 2 Failed 1 | . 1 . Catastrophic . | . . . Database Lockouts . | . . . Manual . | . . . Terminals 4 | . 3 1 Fabricators . | . . . Repair Stations . | . . . Recycling Units 1 | . 1 . Scanalyzers . | . . . Garrison Access . | . . . Terminal Hacks 4 | . 2 2 Open Door 1 | . . 1 Dispatch Records 1 | . . 1 Zone Layout 2 | . 2 . Fabricator Hacks . | . . . Repair Station Hacks . | . . . Recycling Unit Hacks 1 | . 1 . Recycle Component 1 | . 1 . Scanalyzer . | . . . Garrison Access Hacks . | . . . Unauthorized Hacks . | . . . Terminals . | . . . Fabricators . | . . . Repair Stations . | . . . Recycling Units . | . . . Scanalyzers . | . . . Garrison Access . | . . . Data Cores Recovered . | . . . Used . | . . . Hacking Detections 2 | . 1 1 Full Trace Events . | . . . Feedback Events . | . . . Feedback Blocked . | . . . Robot Schematics Acquired . | . . . Robots Built . | . . . Authchips . | . . . Time . | . . . Total Robot Build Rating . | . . . Part Schematics Acquired . | . . . Parts Built . | . . . Authchips . | . . . Time . | . . . Total Part Build Rating . | . . . Parts Repaired . | . . . Time . | . . . Parts Recycled 1 | . 1 . Recycled Matter . | . . . Retrieved Matter . | . . . Retrieved Components . | . . . Parts Scanalyzed . | . . . Part Schematics Acquired . | . . . Parts Damaged . | . . . Bothacking | -11 -10 -10 ------------ Run | Yrd Mat Min Used RIF Installer . | . . . Robots Hacked . | . . . Non-combat . | . . . Combat . | . . . Robot Hacks Applied . | . . . Relay Couplers Released . | . . . Fabnet Peak Effective % . | . . . Robots Rewired . | . . . Allies Hacked . | . . . Hacks Repelled . | . . . Allies | -11 -10 -10 -------- Run | Yrd Mat Min Total Allies . | . . . Largest Group . | . . . Highest-Rated Group . | . . . Highest-Rated Ally . | . . . Total Orders . | . . . Ally Attacks . | . . . Total Damage . | . . . Kills . | . . . Allies Corrupted . | . . . Allies Melted . | . . . Intel | -11 -10 -10 ------- Run | Yrd Mat Min Robot Analysis Total . | . . . Derelict Logs Recovered . | . . . Drone Launches . | . . . Drone Recoveries . | . . . Exploration | -11 -10 -10 ------------- Run | Yrd Mat Min Turns Passed 837 | 111 345 381 Spaces Moved 445 | 72 167 206 Core 23 | 23 . . Treads 422 | 49 167 206 Legs . | . . . Wheels . | . . . Hover . | . . . Flight . | . . . Fastest Speed 50 | 50 160 145 Average Speed 153 | 135 160 155 Slowest Speed 160 | 160 160 160 Overloaded Moves . | . . . Propulsion Burnouts . | . . . Robots Hopped . | . . . Cave-ins Triggered . | . . . Exploration Rate (%) 20 | 4 24 33 Regions Visited 2 Branch Regions 1 Pre-discovered Areas . | . . . Known Exits Taken . | . . . Unknown Exits Taken 2 | 1 1 . Scrap Searched . | . . . Spaces Dug . | . . . Terrain Destroyed 1 | . . 1 Melee . | . . . Projectile 1 | . . 1 AOE . | . . . Terrain Rammed . | . . . Walls Destroyed . | . . . Machines Disabled . | . . . Actions | -11 -10 -10 --------- Run | Yrd Mat Min Total 552 | 82 218 252 Wait 22 | . 20 2 Move 443 | 71 166 206 Hop . | . . . Pick Up 19 | 4 4 11 Fast Attach 12 | 6 4 2 Attach . | . . . Detach . | . . . Swap 12 | 1 4 7 Drop 19 | . 6 13 Fire 25 | . 14 11 Melee . | . . . Ram . | . . . Kick . | . . . Crush . | . . . Escape Stasis . | . . . Rewire . | . . . Trap . | . . . Miscellaneous . | . . . Route ------- -11/Scrapyard -10/Materials -10/Mines History --------- Turn | Location | Event 20 | -11/Scrapyard | Discovered new exit (range 15) 112 | -11/Scrapyard | Entered Materials 323 | -10/Materials | Build established: Mutant 417 | -10/Materials | Discovered new exit (range 16) 457 | -10/Materials | Entered Mines 607 | -10/Mines | Met a Derelict shopkeep closing up shop 777 | -10/Mines | Assembled infested the area 830 | -10/Mines | Core integrity fell below 50% 834 | -10/Mines | Core integrity fell below 20% 838 | -10/Mines | Destroyed by D-53 Grenadier with Mini Grenade Launcher Last Messages --------------- 00821_ C-30 ARC bursts open, deploying its payload. 00821_ D-53 Grenadier unfolds itself. 00823_ D-53 Grenadier Cmb. Airjet blasted off. 00823_ D-53 Grenadier knocked back. 00823_ K-01 Serf collects debris. 00827_ The unstable cave ceiling collapses. 00827_ Lgt. Nuclear Core destroyed. 00827_ K-01 Serf collects debris. 00828_ The unstable cave ceiling collapses. 00828_ K-01 Serf destroyed. 00831_ The unstable cave ceiling collapses. 00831_ Destroyed Shock Absorption System. 00831_ D-53 Grenadier suffers critical hit (Blast). 00831_ D-53 Grenadier destroyed. 00831_ Lgt. Treads destroyed. 00833_ S-10 Pest: "SECOND INTRUDER APPROACHING. ELIMINATE." 00836_ The unstable cave ceiling collapses. Map ----- +----------------------------------------------------+ | ????????????????????????????????????????????? | | ????????????????????????????????????????????? | | ????????????????????????????????????????????? | | ????????????????????????????????????????????? | | ????????????????????????????????????????????? | | ????????????????????????????????????????????? | | ????????????????????????????????????????????? | | ?????#??????????????????????????????????????? | | ?????# ?????????????????????????????????????? | | ?????? ?????????????????????????????????????? | | ?????? ###??????????????????????????????????? | | ??????? #??????????????????????????????????? | | ??????? #??????????????????????????????????? | | ???????# #??#???????????????????????????????? | | ???????# ## #???????????????????????????????? | | ???????# #??????????????????##???????????? | | ???????# ####????????????????? #???????????? | | ???????# #?????????????###??? #???????????? | | ???????# #####????????? #?? ### #???????? | | ???????# #?????#### #?# ??????? | | ???????##### #????## ## % ????????? | | ???????????# #???## %% ;#??????????? | | ???????????# #???# =!=#????????????? | | ???????????# #???# # d%% #????????????? | | ???????????# #???# ## #????????????? | | ???????????# #???# @ #????????????????? | | ???????????# ##### #????????????????? | | ???????????# ##????????????????? | | ???????????# ##?????????????????? | | ???????????###### #######??????????????????? | | ????????????????## #????????????#???????????? | | ?????????????????# #????????????# ??????????? | | ?????????????????# #???????????## ##????????? | | ?????????????????# #??????????## #????????? | | ?????????????????# ######???### #???????? | | ?????????????????# #???# ######## | | ?????????????????###### ##### ## | | ??????????????????????# ## ##### | | ??????????????????????#### ## ### ##??? | | ?????????????????????????# #????# ##?? | | ?????????????????????????# #???## ### | | ????????????????####?????# #???# | | ???????????###### ##????# #??## | | ??????????## ## ###?## ## ## ### # ## | | ?????????## ### #??# ## #? | | ?????????# ##???# #? #? | | ?????????# ########????# #??#? | | ?????????######## ###???######### ## ## | | ???????????####?## ##?????# | | ???????????#"[### #??????# ############# | +----------------------------------------------------+ Best States ------------- Heat Dissipation 39 Energy Generation 14 Energy Capacity 250 Matter Stores 274 Matter Capacity 300 Sight Range 16 Terrain Scan Density 10 Propulsion Shielding 33 Weapon Shielding 33 Evasion (%) 50 Recoil Reduction 2 Item Schematics ----------------- None Robot Schematics ------------------ None Fabricated ------------ Nothing Alien Tech Used ----------------- None Achievements -------------- None Challenges ------------ None Game ------ Seed TacticalSuspensionHammer Manual? 0 Play Time 00:12:31 Cumulative 9.4 hours Start 2024.05.19 @ 15:07:48 End 2024.07.20 @ 22:02:16 Sessions 2 Manual Loads 0 Difficulty Rogue Special Mode None Game No. 16 Rogue 16 Adventurer 0 Explorer 0 Win Type - Total 0 Types 0/0/0/0/0/0/0/0/0 Lore% 13 Gallery% 22 Achievement% 14 Wizard Run 0 Options --------- Layout 1 ASCII 0 Keyboard 0 Movement Mouse Keybinds 0 Fullscreen 1 Font 24/Smallcaps Map View 50x35 Zoom Use 0% Tactical HUD 1 Map Filters NONE Filters NONE Steam 1 RUN: 1c8e9413-d928-4dfd-a0e5-c574fc5c2661